[Event "MCR rapid mládeže 2023 U16"]
[Site "Harachov, Czech Republic"]
[Date "2023.09.09"]
[Round "2.11"]
[White "Kubatova, Ema"]
[Black "Kammova, Katerina"]
[Result "0-1"]
[TimeControl "20min+5s/move"]
[WhiteElo "1206"]
[BlackElo "1393"]

1. d4 {[%clk 00:20:07]} {[%emt 00:00:02]} e6 {[%clk 00:20:06]} {[%emt
00:00:04]} 2. e4 {[%clk 00:20:03]} {[%emt 00:00:09]} d5 {[%clk 00:20:09]}
{[%emt 00:00:02]} 3. Nd2 {[%clk 00:20:04]} {[%emt 00:00:04]} Be7 {[%clk
00:20:10]} {[%emt 00:00:04]} 4. c3 {[%clk 00:19:31]} {[%emt 00:00:38]} Nf6
{[%clk 00:20:02]} {[%emt 00:00:13]} 5. Bd3 {[%clk 00:18:16]} {[%emt 00:01:21]}
b6 {[%clk 00:18:42]} {[%emt 00:01:25]} 6. Bc2 {[%clk 00:17:10]} {[%emt
00:01:11]} Bb7 {[%clk 00:18:34]} {[%emt 00:00:12]} 7. e5 {[%clk 00:15:09]}
{[%emt 00:02:06]} Nfd7 {[%clk 00:18:34]} {[%emt 00:00:05]} 8. Ngf3 {[%clk
00:15:03]} {[%emt 00:00:11]} Ba6 {[%clk 00:18:03]} {[%emt 00:00:36]} 9. Nb3
{[%clk 00:13:21]} {[%emt 00:01:48]} c5 {[%clk 00:17:25]} {[%emt 00:00:43]} 10.
Bf4 {[%clk 00:11:40]} {[%emt 00:01:43]} Qc8 {[%clk 00:15:33]} {[%emt 00:01:58]}
11. Nc1 {[%clk 00:09:01]} {[%emt 00:02:44]} Nc6 {[%clk 00:12:34]} {[%emt
00:03:04]} 12. Bd3 {[%clk 00:07:17]} {[%emt 00:01:50]} cxd4 {[%clk 00:10:55]}
{[%emt 00:01:44]} 13. cxd4 {[%clk 00:07:01]} {[%emt 00:00:20]} Nb4 {[%clk
00:10:26]} {[%emt 00:00:34]} 14. O-O {[%clk 00:05:24]} {[%emt 00:01:42]} Nxd3
{[%clk 00:10:03]} {[%emt 00:00:28]} 15. Nxd3 {[%clk 00:05:21]} {[%emt
00:00:08]} Qc4 {[%clk 00:08:21]} {[%emt 00:01:45]} 16. Nfe1 {[%clk 00:03:52]}
{[%emt 00:01:36]} Qc7 {[%clk 00:08:06]} {[%emt 00:00:21]} 17. Rc1 {[%clk
00:03:29]} {[%emt 00:00:27]} Qd8 {[%clk 00:08:08]} {[%emt 00:00:03]} 18. Nf3
{[%clk 00:03:07]} {[%emt 00:00:27]} Rc8 {[%clk 00:08:06]} {[%emt 00:00:08]} 19.
Qd2 {[%clk 00:02:57]} {[%emt 00:00:15]} O-O {[%clk 00:07:32]} {[%emt 00:00:38]}
20. Rfd1 {[%clk 00:02:26]} {[%emt 00:00:36]} Bc4 {[%clk 00:06:51]} {[%emt
00:00:47]} 21. b3 {[%clk 00:01:50]} {[%emt 00:00:41]} Ba6 {[%clk 00:06:54]}
{[%emt 00:00:02]} 22. Nb4 {[%clk 00:01:05]} {[%emt 00:00:50]} Bb7 {[%clk
00:06:45]} {[%emt 00:00:14]} 23. a3 {[%clk 00:00:37]} {[%emt 00:00:33]} a5
{[%clk 00:06:15]} {[%emt 00:00:35]} 24. Nc2 {[%clk 00:00:30]} {[%emt 00:00:12]}
Ba6 {[%clk 00:06:03]} {[%emt 00:00:18]} 25. a4 {[%clk 00:00:18]} {[%emt
00:00:16]} Nb8 {[%clk 00:04:59]} {[%emt 00:01:09]} 26. Qe1 {[%clk 00:00:15]}
{[%emt 00:00:08]} Nc6 {[%clk 00:04:52]} {[%emt 00:00:12]} 27. Bd2 {[%clk
00:00:17]} {[%emt 00:00:03]} Qd7 {[%clk 00:04:09]} {[%emt 00:00:48]} 28. Qe3
{[%clk 00:00:13]} {[%emt 00:00:09]} Qd8 {[%clk 00:03:42]} {[%emt 00:00:33]} 29.
Qe1 {[%clk 00:00:10]} {[%emt 00:00:07]} Re8 {[%clk 00:03:33]} {[%emt 00:00:13]}
30. Bc3 {[%clk 00:00:13]} {[%emt 00:00:03]} Qd7 {[%clk 00:03:08]} {[%emt
00:00:30]} 31. Qd2 {[%clk 00:00:16]} {[%emt 00:00:02]} Qd8 {[%clk 00:02:50]}
{[%emt 00:00:22]} 32. Nce1 {[%clk 00:00:07]} {[%emt 00:00:14]} Nb4 {[%clk
00:02:45]} {[%emt 00:00:11]} 33. Bxb4 {[%clk 00:00:07]} {[%emt 00:00:05]} Bxb4
{[%clk 00:02:48]} {[%emt 00:00:01]} 34. Qb2 {[%clk 00:00:09]} {[%emt 00:00:03]}
Qe7 {[%clk 00:02:39]} {[%emt 00:00:14]} 35. Qb1 {[%clk 00:00:11]} {[%emt
00:00:04]} Be2 {[%clk 00:02:31]} {[%emt 00:00:13]} 36. Rxc8 {[%clk 00:00:08]}
{[%emt 00:00:08]} Rxc8 {[%clk 00:02:30]} {[%emt 00:00:06]} 37. Rc1 {[%clk
00:00:11]} {[%emt 00:00:02]} Ba6 {[%clk 00:01:24]} {[%emt 00:01:10]} 38. Rxc8+
{[%clk 00:00:12]} {[%emt 00:00:05]} Bxc8 {[%clk 00:01:28]} {[%emt 00:00:01]} 39.
Qc2 {[%clk 00:00:14]} {[%emt 00:00:03]} Qd7 {[%clk 00:01:21]} {[%emt 00:00:12]}
40. Nd3 {[%clk 00:00:16]} {[%emt 00:00:03]} Be7 {[%clk 00:01:23]} {[%emt
00:00:03]} 41. h3 {[%clk 00:00:16]} {[%emt 00:00:05]} Bb7 {[%clk 00:01:22]}
{[%emt 00:00:06]} 42. Qc3 {[%clk 00:00:09]} {[%emt 00:00:12]} Qc8 {[%clk
00:01:19]} {[%emt 00:00:08]} 43. Qxc8+ {[%clk 00:00:07]} {[%emt 00:00:06]} Bxc8
{[%clk 00:01:23]} 44. Kh2 {[%clk 00:00:07]} {[%emt 00:00:05]} f6 {[%clk
00:01:25]} {[%emt 00:00:04]} 45. exf6 {[%clk 00:00:09]} {[%emt 00:00:03]} gxf6
{[%clk 00:01:29]} 46. Nd2 {[%clk 00:00:10]} {[%emt 00:00:03]} Kf7 {[%clk
00:01:30]} {[%emt 00:00:04]} 47. Kg3 {[%clk 00:00:11]} {[%emt 00:00:04]} Bd6+
{[%clk 00:01:32]} {[%emt 00:00:03]} 48. Kf3 {[%clk 00:00:14]} {[%emt 00:00:03]}
e5 {[%clk 00:01:27]} {[%emt 00:00:10]} 49. dxe5 {[%clk 00:00:15]} {[%emt
00:00:04]} fxe5 {[%clk 00:01:31]} {[%emt 00:00:01]} 50. Ne1 {[%clk 00:00:13]}
{[%emt 00:00:07]} e4+ {[%clk 00:01:20]} {[%emt 00:00:16]} 51. Ke3 {[%clk
00:00:13]} {[%emt 00:00:04]} Bc5+ {[%clk 00:01:24]} {[%emt 00:00:01]} 52. Ke2
{[%clk 00:00:16]} {[%emt 00:00:02]} Ba6+ {[%clk 00:01:27]} 53. Kd1 {[%clk
00:00:16]} {[%emt 00:00:05]} Bxf2 {[%clk 00:01:30]} {[%emt 00:00:03]} 54. Nc2
{[%clk 00:00:14]} {[%emt 00:00:07]} Ke6 {[%clk 00:01:30]} {[%emt 00:00:04]} 55.
Nb1 {[%clk 00:00:11]} {[%emt 00:00:09]} e3 {[%clk 00:01:26]} {[%emt 00:00:09]}
56. Nc3 {[%clk 00:00:13]} {[%emt 00:00:03]} d4 {[%clk 00:01:29]} {[%emt
00:00:02]} 57. Nxd4+ {[%clk 00:00:15]} {[%emt 00:00:02]} Ke5 {[%clk 00:01:30]}
{[%emt 00:00:05]} 58. Nf3+ {[%clk 00:00:08]} {[%emt 00:00:12]} Kd6 {[%clk
00:01:18]} {[%emt 00:00:16]} 59. Ne2 {[%clk 00:00:07]} {[%emt 00:00:07]} Kc5
{[%clk 00:01:05]} {[%emt 00:00:18]} 60. Nfd4 {[%clk 00:00:09]} {[%emt
00:00:02]} Bb7 {[%clk 00:01:07]} {[%emt 00:00:04]} 61. g4 {[%clk 00:00:09]}
{[%emt 00:00:05]} Bg2 {[%clk 00:01:07]} {[%emt 00:00:04]} 62. Nc2 {[%clk
00:00:06]} {[%emt 00:00:08]} Bxh3 {[%clk 00:01:09]} {[%emt 00:00:04]} 63. Nf4
{[%clk 00:00:00]} {[%emt 00:00:05]} Bxg4+ {[%clk 00:01:09]} {[%emt 00:00:03]}
64. Ne2 {[%clk 00:00:00]} {[%emt 00:00:03]} h5 {[%clk 00:01:09]} {[%emt
00:00:05]} 0-1

[Event "MCR rapid mládeže 2023 U16"]
[Site "Harachov, Czech Republic"]
[Date "2023.09.09"]
[Round "2.12"]
[White "Mikesova, Lenka"]
[Black "Slivova, Linda"]
[Result "1/2-1/2"]
[TimeControl "20min+5s/move"]
[WhiteElo "1410"]
[BlackElo "1386"]

1. e4 {[%clk 00:20:07]} {[%emt 00:00:01]} d5 {[%clk 00:20:09]} {[%emt
00:00:02]} 2. exd5 {[%clk 00:20:06]} {[%emt 00:00:06]} Qxd5 {[%clk 00:20:13]}
{[%emt 00:00:02]} 3. Nc3 {[%clk 00:20:09]} {[%emt 00:00:03]} Qd6 {[%clk
00:20:16]} {[%emt 00:00:01]} 4. d4 {[%clk 00:19:50]} {[%emt 00:00:24]} Nf6
{[%clk 00:20:18]} {[%emt 00:00:03]} 5. Nf3 {[%clk 00:19:26]} {[%emt 00:00:29]}
c6 {[%clk 00:20:21]} {[%emt 00:00:02]} 6. Bc4 {[%clk 00:19:05]} {[%emt
00:00:27]} Bf5 {[%clk 00:19:24]} {[%emt 00:01:01]} 7. O-O {[%clk 00:16:47]}
{[%emt 00:02:23]} e6 {[%clk 00:18:56]} {[%emt 00:00:33]} 8. Bg5 {[%clk
00:15:42]} {[%emt 00:01:09]} Be7 {[%clk 00:18:01]} {[%emt 00:01:00]} 9. Nh4
{[%clk 00:14:51]} {[%emt 00:00:56]} Bg6 {[%clk 00:16:24]} {[%emt 00:01:43]} 10.
Nxg6 {[%clk 00:14:44]} {[%emt 00:00:11]} hxg6 {[%clk 00:16:26]} {[%emt
00:00:03]} 11. h3 {[%clk 00:14:07]} {[%emt 00:00:42]} Nbd7 {[%clk 00:15:16]}
{[%emt 00:01:16]} 12. Re1 {[%clk 00:13:11]} {[%emt 00:01:00]} O-O-O {[%clk
00:12:55]} {[%emt 00:02:26]} 13. a4 {[%clk 00:10:54]} {[%emt 00:02:23]} Nb6
{[%clk 00:11:34]} {[%emt 00:01:26]} 14. Bd3 {[%clk 00:09:10]} {[%emt 00:01:49]}
Qxd4 {[%clk 00:09:21]} {[%emt 00:02:17]} 15. Be3 {[%clk 00:09:13]} {[%emt
00:00:02]} Qd6 {[%clk 00:09:10]} {[%emt 00:00:17]} 16. Bxb6 {[%clk 00:08:56]}
{[%emt 00:00:22]} axb6 {[%clk 00:09:12]} {[%emt 00:00:03]} 17. a5 {[%clk
00:08:44]} {[%emt 00:00:17]} bxa5 {[%clk 00:08:16]} {[%emt 00:01:01]} 18. Rxa5
{[%clk 00:08:42]} {[%emt 00:00:07]} Rh5 {[%clk 00:07:20]} {[%emt 00:01:01]} 19.
Ra8+ {[%clk 00:08:17]} {[%emt 00:00:31]} Kd7 {[%clk 00:06:16]} {[%emt
00:01:09]} 20. Rxd8+ {[%clk 00:08:11]} {[%emt 00:00:10]} Bxd8 {[%clk 00:06:00]}
{[%emt 00:00:21]} 21. Be2 {[%clk 00:08:07]} {[%emt 00:00:08]} Ra5 {[%clk
00:05:21]} {[%emt 00:00:45]} 22. Qxd6+ {[%clk 00:07:24]} {[%emt 00:00:48]} Kxd6
{[%clk 00:05:24]} {[%emt 00:00:02]} 23. Rd1+ {[%clk 00:07:22]} {[%emt
00:00:07]} Ke7 {[%clk 00:05:23]} {[%emt 00:00:06]} 24. Bf3 {[%clk 00:06:56]}
{[%emt 00:00:31]} Nd5 {[%clk 00:04:51]} {[%emt 00:00:37]} 25. Nxd5+ {[%clk
00:06:40]} {[%emt 00:00:21]} exd5 {[%clk 00:04:54]} {[%emt 00:00:02]} 26. Re1+
{[%clk 00:06:28]} {[%emt 00:00:16]} Kd7 {[%clk 00:04:33]} {[%emt 00:00:26]} 27.
Rd1 {[%clk 00:05:49]} {[%emt 00:00:45]} Bf6 {[%clk 00:04:12]} {[%emt 00:00:25]}
28. b4 {[%clk 00:04:28]} {[%emt 00:01:26]} Ra1 {[%clk 00:02:54]} {[%emt
00:01:24]} 29. Rxa1 {[%clk 00:04:15]} {[%emt 00:00:18]} Bxa1 {[%clk 00:02:57]}
{[%emt 00:00:02]} 30. Be2 {[%clk 00:04:02]} {[%emt 00:00:18]} Kd6 {[%clk
00:02:32]} {[%emt 00:00:30]} 31. Kf1 {[%clk 00:03:26]} {[%emt 00:00:41]} Bc3
{[%clk 00:02:27]} {[%emt 00:00:11]} 32. b5 {[%clk 00:03:28]} {[%emt 00:00:03]}
Kc5 {[%clk 00:02:17]} {[%emt 00:00:15]} 33. bxc6 {[%clk 00:03:30]} {[%emt
00:00:04]} bxc6 {[%clk 00:02:21]} {[%emt 00:00:01]} 34. Bd3 {[%clk 00:03:27]}
{[%emt 00:00:07]} g5 {[%clk 00:01:24]} {[%emt 00:01:01]} 35. Ke2 {[%clk
00:03:01]} {[%emt 00:00:31]} Kd4 {[%clk 00:01:02]} {[%emt 00:00:28]} 36. Bh7
{[%clk 00:01:48]} {[%emt 00:01:18]} Ke5 {[%clk 00:00:55]} {[%emt 00:00:12]} 37.
Bd3 {[%clk 00:01:46]} {[%emt 00:00:08]} c5 {[%clk 00:00:57]} {[%emt 00:00:03]}
38. Ba6 {[%clk 00:01:37]} {[%emt 00:00:14]} Bd4 {[%clk 00:00:52]} {[%emt
00:00:10]} 39. Bb5 {[%clk 00:01:30]} {[%emt 00:00:13]} Bc3 {[%clk 00:00:40]}
{[%emt 00:00:17]} 40. Be8 {[%clk 00:01:30]} {[%emt 00:00:04]} f6 {[%clk
00:00:44]} {[%emt 00:00:01]} 41. Bg6 {[%clk 00:01:25]} {[%emt 00:00:10]} Bd4
{[%clk 00:00:43]} {[%emt 00:00:06]} 42. f3 {[%clk 00:01:17]} {[%emt 00:00:13]}
Kf4 {[%clk 00:00:47]} {[%emt 00:00:01]} 43. Bf7 {[%clk 00:01:16]} {[%emt
00:00:06]} Kg3 {[%clk 00:00:43]} {[%emt 00:00:09]} 44. Kf1 {[%clk 00:01:18]}
{[%emt 00:00:03]} Kf4 {[%clk 00:00:39]} {[%emt 00:00:09]} 45. Bxd5 {[%clk
00:01:22]} {[%emt 00:00:02]} Ke5 {[%clk 00:00:44]} 46. Bb3 {[%clk 00:01:22]}
{[%emt 00:00:06]} Be3 {[%clk 00:00:45]} {[%emt 00:00:04]} 47. Ke2 {[%clk
00:01:25]} {[%emt 00:00:02]} Bd4 {[%clk 00:00:49]} {[%emt 00:00:02]} 48. Bc4
{[%clk 00:01:22]} {[%emt 00:00:08]} Kf4 {[%clk 00:00:52]} {[%emt 00:00:01]} 49.
Bd3 {[%clk 00:01:25]} {[%emt 00:00:02]} Kg3 {[%clk 00:00:53]} {[%emt 00:00:03]}
50. Kf1 {[%clk 00:01:28]} {[%emt 00:00:02]} Be3 {[%clk 00:00:50]} {[%emt
00:00:09]} 51. Be4 {[%clk 00:01:27]} {[%emt 00:00:06]} Bd4 {[%clk 00:00:51]}
{[%emt 00:00:04]} 1/2-1/2

[Event "MCR rapid mládeže 2023 U16"]
[Site "Harachov, Czech Republic"]
[Date "2023.09.09"]
[Round "2.13"]
[White "Barteckova, Valerie"]
[Black "Buchtova, Viktorie"]
[Result "1-0"]
[TimeControl "20min+5s/move"]
[WhiteElo "1498"]
[BlackElo "1556"]

1. d4 {[%clk 00:20:08]} {[%emt 00:00:01]} Nf6 {[%clk 00:20:14]} {[%emt
00:00:01]} 2. Nf3 {[%clk 00:20:10]} {[%emt 00:00:03]} e6 {[%clk 00:20:18]} 3.
e3 {[%clk 00:20:10]} {[%emt 00:00:06]} b6 {[%clk 00:20:21]} {[%emt 00:00:01]} 4.
c3 {[%clk 00:19:54]} {[%emt 00:00:22]} Bb7 {[%clk 00:20:18]} {[%emt 00:00:08]}
5. Bd3 {[%clk 00:19:57]} {[%emt 00:00:02]} Be7 {[%clk 00:19:25]} {[%emt
00:00:58]} 6. Nbd2 {[%clk 00:20:00]} {[%emt 00:00:03]} d5 {[%clk 00:19:14]}
{[%emt 00:00:16]} 7. O-O {[%clk 00:20:01]} {[%emt 00:00:03]} Nbd7 {[%clk
00:19:15]} {[%emt 00:00:04]} 8. Qe2 {[%clk 00:19:53]} {[%emt 00:00:13]} O-O
{[%clk 00:19:12]} {[%emt 00:00:08]} 9. e4 {[%clk 00:18:58]} {[%emt 00:01:01]}
dxe4 {[%clk 00:19:08]} {[%emt 00:00:08]} 10. Nxe4 {[%clk 00:19:01]} {[%emt
00:00:02]} Nxe4 {[%clk 00:19:09]} {[%emt 00:00:04]} 11. Bxe4 {[%clk 00:19:04]}
{[%emt 00:00:02]} Bxe4 {[%clk 00:19:06]} {[%emt 00:00:08]} 12. Qxe4 {[%clk
00:19:07]} {[%emt 00:00:02]} Nf6 {[%clk 00:18:54]} {[%emt 00:00:17]} 13. Qe2
{[%clk 00:18:49]} {[%emt 00:00:19]} c5 {[%clk 00:16:39]} {[%emt 00:02:23]} 14.
Be3 {[%clk 00:17:44]} {[%emt 00:01:10]} Qc7 {[%clk 00:16:33]} {[%emt 00:00:12]}
15. Rac1 {[%clk 00:16:44]} {[%emt 00:01:05]} Nd5 {[%clk 00:15:49]} {[%emt
00:00:49]} 16. dxc5 {[%clk 00:15:15]} {[%emt 00:01:34]} Bxc5 {[%clk 00:14:59]}
{[%emt 00:00:55]} 17. Bxc5 {[%clk 00:15:17]} {[%emt 00:00:03]} Qxc5 {[%clk
00:15:02]} {[%emt 00:00:01]} 18. Nd4 {[%clk 00:14:53]} {[%emt 00:00:29]} Rac8
{[%clk 00:14:29]} {[%emt 00:00:31]} 19. Rfe1 {[%clk 00:14:07]} {[%emt
00:00:58]} Qc4 {[%clk 00:13:30]} {[%emt 00:01:04]} 20. Qxc4 {[%clk 00:12:33]}
{[%emt 00:01:39]} Rxc4 {[%clk 00:13:35]} {[%emt 00:00:01]} 21. Rcd1 {[%clk
00:11:56]} {[%emt 00:00:40]} a6 {[%clk 00:12:07]} {[%emt 00:01:34]} 22. Nc2
{[%clk 00:10:32]} {[%emt 00:01:26]} Rfc8 {[%clk 00:10:48]} {[%emt 00:01:26]} 23.
Ne3 {[%clk 00:10:00]} {[%emt 00:00:37]} Nxe3 {[%clk 00:10:51]} {[%emt
00:00:03]} 24. Rxe3 {[%clk 00:10:02]} {[%emt 00:00:03]} Kf8 {[%clk 00:10:19]}
{[%emt 00:00:37]} 25. Red3 {[%clk 00:09:39]} {[%emt 00:00:27]} R8c7 {[%clk
00:09:25]} {[%emt 00:00:59]} 26. Rd7 {[%clk 00:08:47]} {[%emt 00:00:55]} Ke8
{[%clk 00:07:45]} {[%emt 00:01:47]} 27. Rxc7 {[%clk 00:08:37]} {[%emt
00:00:16]} Rxc7 {[%clk 00:07:48]} {[%emt 00:00:01]} 28. Rd6 {[%clk 00:08:24]}
{[%emt 00:00:18]} Rd7 {[%clk 00:07:50]} {[%emt 00:00:03]} 29. Rxd7 {[%clk
00:08:23]} {[%emt 00:00:06]} Kxd7 {[%clk 00:07:54]} {[%emt 00:00:02]} 30. Kf1
{[%clk 00:08:27]} Kd6 {[%clk 00:07:42]} {[%emt 00:00:16]} 31. Ke2 {[%clk
00:08:31]} {[%emt 00:00:03]} Kd5 {[%clk 00:06:54]} {[%emt 00:00:52]} 32. Kd3
{[%clk 00:08:30]} {[%emt 00:00:06]} b5 {[%clk 00:06:43]} {[%emt 00:00:17]} 33.
b3 {[%clk 00:08:15]} {[%emt 00:00:19]} f6 {[%clk 00:06:19]} {[%emt 00:00:29]}
34. f3 {[%clk 00:07:56]} {[%emt 00:00:24]} h5 {[%clk 00:04:59]} {[%emt
00:01:25]} 35. h3 {[%clk 00:04:41]} {[%emt 00:03:20]} g5 {[%clk 00:03:44]}
{[%emt 00:01:20]} 36. g3 {[%clk 00:03:48]} {[%emt 00:00:59]} f5 {[%clk
00:01:55]} {[%emt 00:01:54]} 37. Ke3 {[%clk 00:01:49]} {[%emt 00:02:03]} e5
{[%clk 00:00:53]} {[%emt 00:01:08]} 38. f4 {[%clk 00:00:51]} {[%emt 00:01:03]}
exf4+ {[%clk 00:00:41]} {[%emt 00:00:17]} 39. gxf4 {[%clk 00:00:52]} {[%emt
00:00:04]} g4 {[%clk 00:00:44]} {[%emt 00:00:02]} 40. hxg4 {[%clk 00:00:46]}
{[%emt 00:00:11]} hxg4 {[%clk 00:00:46]} {[%emt 00:00:02]} 41. Kd3 {[%clk
00:00:34]} {[%emt 00:00:17]} Kc5 {[%clk 00:00:28]} {[%emt 00:00:23]} 42. Ke3
{[%clk 00:00:30]} {[%emt 00:00:08]} a5 {[%clk 00:00:19]} {[%emt 00:00:15]} 43.
Kd3 {[%clk 00:00:34]} {[%emt 00:00:01]} a4 {[%clk 00:00:13]} {[%emt 00:00:11]}
44. Ke3 {[%clk 00:00:27]} {[%emt 00:00:13]} Kd5 {[%clk 00:00:07]} {[%emt
00:00:12]} 45. Kd3 {[%clk 00:00:30]} Kc5 {[%clk 00:00:11]} {[%emt 00:00:02]} 46.
Ke3 {[%clk 00:00:35]} Kd5 {[%clk 00:00:08]} {[%emt 00:00:07]} 47. Kd3 {[%clk
00:00:39]} a3 {[%clk 00:00:07]} {[%emt 00:00:08]} 48. Ke3 {[%clk 00:00:34]}
{[%emt 00:00:10]} Kc5 {[%clk 00:00:06]} {[%emt 00:00:06]} 49. Kd3 {[%clk
00:00:38]} {[%emt 00:00:01]} Kd5 {[%clk 00:00:00]} {[%emt 00:00:05]} 1-0

[Event "MCR rapid mládeže 2023 U16"]
[Site "Harachov, Czech Republic"]
[Date "2023.09.09"]
[Round "2.14"]
[White "Kubatova, Beta"]
[Black "Nguyen, Nhat Minh Thu"]
[Result "1/2-1/2"]
[TimeControl "20min+5s/move"]
[WhiteElo "1376"]
[BlackElo "1405"]

1. d4 {[%clk 00:20:06]} {[%emt 00:00:03]} d5 {[%clk 00:20:07]} {[%emt
00:00:03]} 2. c4 {[%clk 00:20:09]} {[%emt 00:00:02]} Bf5 {[%clk 00:20:10]}
{[%emt 00:00:02]} 3. Nc3 {[%clk 00:19:54]} {[%emt 00:00:20]} e6 {[%clk
00:20:11]} {[%emt 00:00:05]} 4. Nf3 {[%clk 00:19:53]} {[%emt 00:00:06]} h6
{[%clk 00:19:02]} {[%emt 00:01:14]} 5. Bf4 {[%clk 00:19:45]} {[%emt 00:00:12]}
Nf6 {[%clk 00:18:56]} {[%emt 00:00:12]} 6. e3 {[%clk 00:19:45]} {[%emt
00:00:05]} c5 {[%clk 00:18:25]} {[%emt 00:00:35]} 7. Be2 {[%clk 00:19:23]}
{[%emt 00:00:27]} Nc6 {[%clk 00:17:39]} {[%emt 00:00:52]} 8. O-O {[%clk
00:19:16]} {[%emt 00:00:11]} Be7 {[%clk 00:17:35]} {[%emt 00:00:09]} 9. Rc1
{[%clk 00:18:51]} {[%emt 00:00:30]} Bg4 {[%clk 00:16:44]} {[%emt 00:00:57]} 10.
h3 {[%clk 00:18:43]} {[%emt 00:00:13]} Bxf3 {[%clk 00:16:39]} {[%emt 00:00:11]}
11. Bxf3 {[%clk 00:18:45]} {[%emt 00:00:03]} cxd4 {[%clk 00:15:02]} {[%emt
00:01:41]} 12. exd4 {[%clk 00:18:10]} {[%emt 00:00:40]} dxc4 {[%clk 00:14:36]}
{[%emt 00:00:32]} 13. Nb5 {[%clk 00:18:04]} {[%emt 00:00:11]} Rc8 {[%clk
00:14:02]} {[%emt 00:00:38]} 14. Rxc4 {[%clk 00:17:51]} {[%emt 00:00:18]} a6
{[%clk 00:13:26]} {[%emt 00:00:41]} 15. Bxc6+ {[%clk 00:17:36]} {[%emt
00:00:21]} bxc6 {[%clk 00:12:43]} {[%emt 00:00:48]} 16. Na7 {[%clk 00:17:31]}
{[%emt 00:00:09]} Ra8 {[%clk 00:09:08]} {[%emt 00:03:40]} 17. Nxc6 {[%clk
00:17:22]} {[%emt 00:00:14]} Qd7 {[%clk 00:08:09]} {[%emt 00:01:04]} 18. Nxe7
{[%clk 00:14:07]} {[%emt 00:03:20]} Qxe7 {[%clk 00:08:09]} {[%emt 00:00:05]} 19.
Qa4+ {[%clk 00:13:45]} {[%emt 00:00:27]} Qd7 {[%clk 00:06:59]} {[%emt
00:01:15]} 20. Qxd7+ {[%clk 00:13:38]} {[%emt 00:00:11]} Nxd7 {[%clk 00:06:38]}
{[%emt 00:00:26]} 21. Rfc1 {[%clk 00:13:36]} {[%emt 00:00:06]} O-O {[%clk
00:06:15]} {[%emt 00:00:29]} 22. Bd6 {[%clk 00:13:24]} {[%emt 00:00:17]} Rfd8
{[%clk 00:06:08]} {[%emt 00:00:13]} 23. Rc7 {[%clk 00:13:02]} {[%emt 00:00:27]}
Nf6 {[%clk 00:05:29]} {[%emt 00:00:45]} 24. Be5 {[%clk 00:12:29]} {[%emt
00:00:37]} Nd7 {[%clk 00:04:53]} {[%emt 00:00:41]} 25. Rb7 {[%clk 00:11:39]}
{[%emt 00:00:55]} Nxe5 {[%clk 00:04:27]} {[%emt 00:00:31]} 26. dxe5 {[%clk
00:11:43]} {[%emt 00:00:02]} Rab8 {[%clk 00:04:09]} {[%emt 00:00:23]} 27. Rcc7
{[%clk 00:11:36]} {[%emt 00:00:11]} Rxb7 {[%clk 00:03:35]} {[%emt 00:00:39]} 28.
Rxb7 {[%clk 00:11:37]} {[%emt 00:00:03]} Rd5 {[%clk 00:03:02]} {[%emt
00:00:38]} 29. Ra7 {[%clk 00:11:20]} {[%emt 00:00:23]} a5 {[%clk 00:02:56]}
{[%emt 00:00:11]} 30. f4 {[%clk 00:11:08]} {[%emt 00:00:17]} Rb5 {[%clk
00:02:35]} {[%emt 00:00:25]} 31. Kh2 {[%clk 00:10:24]} {[%emt 00:00:49]} Rxb2
{[%clk 00:02:16]} {[%emt 00:00:25]} 32. Rxa5 {[%clk 00:10:27]} {[%emt
00:00:02]} Kh7 {[%clk 00:02:20]} {[%emt 00:00:02]} 33. Ra7 {[%clk 00:10:11]}
{[%emt 00:00:20]} Kg6 {[%clk 00:02:22]} {[%emt 00:00:03]} 34. Kg3 {[%clk
00:10:10]} {[%emt 00:00:06]} Rc2 {[%clk 00:01:42]} {[%emt 00:00:45]} 35. a4
{[%clk 00:09:51]} {[%emt 00:00:25]} h5 {[%clk 00:01:40]} {[%emt 00:00:07]} 36.
h4 {[%clk 00:09:36]} {[%emt 00:00:19]} Rc3+ {[%clk 00:01:38]} {[%emt 00:00:07]}
37. Kh2 {[%clk 00:09:33]} {[%emt 00:00:08]} Rc4 {[%clk 00:01:32]} {[%emt
00:00:12]} 38. g3 {[%clk 00:09:34]} {[%emt 00:00:04]} Rc2+ {[%clk 00:01:36]} 39.
Kh3 {[%clk 00:09:37]} {[%emt 00:00:02]} Rc1 {[%clk 00:01:29]} {[%emt 00:00:13]}
40. a5 {[%clk 00:09:38]} {[%emt 00:00:04]} Ra1 {[%clk 00:01:24]} {[%emt
00:00:09]} 41. a6 {[%clk 00:09:39]} {[%emt 00:00:04]} Ra5 {[%clk 00:01:28]}
{[%emt 00:00:02]} 42. Ra8 {[%clk 00:09:16]} {[%emt 00:00:27]} Ra3 {[%clk
00:01:21]} {[%emt 00:00:12]} 43. a7 {[%clk 00:09:05]} {[%emt 00:00:16]} Ra4
{[%clk 00:01:19]} {[%emt 00:00:07]} 44. Kg2 {[%clk 00:08:53]} {[%emt 00:00:16]}
Kf5 {[%clk 00:01:12]} {[%emt 00:00:13]} 45. Rg8 {[%clk 00:07:49]} {[%emt
00:01:08]} Rxa7 {[%clk 00:01:15]} {[%emt 00:00:02]} 46. Rxg7 {[%clk 00:07:52]}
{[%emt 00:00:02]} Ra2+ {[%clk 00:01:14]} {[%emt 00:00:06]} 47. Kh3 {[%clk
00:07:53]} {[%emt 00:00:05]} Ra7 {[%clk 00:01:15]} {[%emt 00:00:04]} 48. Rg5+
{[%clk 00:07:46]} {[%emt 00:00:11]} Ke4 {[%clk 00:01:14]} {[%emt 00:00:06]} 49.
Rxh5 {[%clk 00:07:48]} {[%emt 00:00:03]} Kf3 {[%clk 00:00:51]} {[%emt
00:00:28]} 50. f5 {[%clk 00:04:49]} {[%emt 00:03:05]} Ra1 {[%clk 00:00:40]}
{[%emt 00:00:15]} 51. Kh2 {[%clk 00:04:35]} {[%emt 00:00:18]} Ra2+ {[%clk
00:00:43]} {[%emt 00:00:03]} 1/2-1/2